bitfinex-derivatives/quotes_SOLF0:USTF0_20250919
["timestamp","ask_amount","ask_price","bid_price","bid_amount"]
[1758322269563,9.02504895,238.92,238.86,0.02833814]
[1758322269762,4.68504895,238.9,238.86,0.02833814]
[1758322270057,4.34,238.89,238.86,0.02833814]
[1758322270454,4.68504895,238.9,238.86,0.02833814]
[1758322270655,4.34,238.89,238.86,0.02833814]
[1758322270863,4.68504895,238.9,238.86,0.02833814]
[1758322271061,4.34,238.89,238.86,0.02833814]
[1758322271263,4.68504895,238.9,238.86,0.02833814]
[1758322271559,4.34,238.89,238.86,0.02833814]
[1758322271756,4.68504895,238.9,238.86,0.02833814]
[1758322272259,4.34,238.89,238.86,6.65833814]
[1758322275259,9.02504895,238.9,238.87,6.63]
[1758322275662,4.34,238.89,238.87,6.63]
[1758322275856,4.68504895,238.9,238.86,0.02833814]
[1758322276058,0.7288416,238.91,238.86,0.02833814]
[1758322276462,0.7288416,238.91,238.87,6.63]
[1758322276864,5.0688416,238.91,238.86,0.02833814]
[1758322277165,5.0688416,238.91,238.87,6.63]
[1758322277961,5.0688416,238.91,238.86,3.79383814]
[1758322278261,5.0688416,238.91,238.87,6.63]
[1758322278567,5.0688416,238.91,238.86,3.79383814]
[1758322279067,4.34,238.9,238.87,6.63]
[1758322280463,4.34,238.9,238.86,6.65833814]
[1758322280765,5.41389055,238.91,238.86,0.02833814]
[1758322280967,4.68504895,238.9,238.86,0.02833814]
[1758322281464,4.34,238.87,238.86,0.02833814]
[1758322282057,9.02504895,238.89,238.86,6.65833814]
[1758322282264,4.34,238.89,238.86,6.65833814]
[1758322283371,4.68504895,238.9,238.86,6.65833814]
[1758322283570,4.34,238.89,238.86,6.65833814]
[1758322286470,4.68504895,238.9,238.86,6.65833814]
[1758322286670,4.34,238.89,238.86,6.65833814]
[1758322288771,5.41389055,238.91,238.87,7.03]
[1758322288967,5.41389055,238.91,238.86,0.02833814]
[1758322289270,0.7288416,238.91,238.86,0.02833814]
[1758322289571,4.68504895,238.93,238.86,0.02833814]
[1758322289770,4.68504895,238.93,238.87,7.03]
[1758322290860,4.68504895,238.93,238.89,7.03]
[1758322291071,4.68504895,238.93,238.88,3.7652]
[1758322291365,9.78385239,238.95,238.89,7.03]
[1758322297673,5.09880344,238.95,238.89,7.03]
[1758322301680,9.78385239,238.95,238.89,7.03]
[1758322302477,4.37,238.94,238.91,7.03]
[1758322304285,4.37,238.94,238.88,7.03]
[1758322308385,4.37,238.93,238.88,7.03]
[1758322308588,8.44944895,238.94,238.88,7.03]
[1758322308989,8.1347,238.93,238.88,7.03]
[1758322309287,3.7647,238.93,238.88,7.03]
[1758322309490,4.37,238.92,238.88,7.03]
[1758322310484,4.37,238.91,238.86,0.02833814]
[1758322310686,8.44994895,238.92,238.86,0.02833814]
[1758322310986,4.37,238.91,238.86,0.02833814]
[1758322311182,8.44994895,238.92,238.86,0.02833814]
[1758322311587,8.44994895,238.92,238.87,7.03]
[1758322311784,4.37,238.91,238.87,7.03]
[1758322313089,8.44994895,238.92,238.87,7.03]
[1758322313790,4.37,238.91,238.87,7.03]
[1758322314986,8.44994895,238.92,238.87,7.03]
[1758322315192,4.37,238.91,238.87,7.03]
[1758322315891,8.44994895,238.92,238.87,7.03]
[1758322316095,8.44994895,238.92,238.86,0.02833814]
[1758322316291,12.81994895,238.92,238.86,7.05833814]
[1758322319089,8.1349,238.92,238.86,7.05833814]
[1758322321491,4.37,238.92,238.86,7.05833814]
[1758322327700,9.05504895,238.92,238.86,7.05833814]
[1758322328188,3.7651,238.9,238.86,7.05833814]
[1758322328590,4.36,238.89,238.86,7.05833814]
[1758322328991,3.7651,238.9,238.86,7.05833814]
[1758322329499,4.36,238.89,238.86,7.05833814]
[1758322330301,4.68504895,238.89,238.86,0.02833814]
[1758322330499,4.36,238.87,238.86,0.02833814]
[1758322348211,8.45044895,238.89,238.86,0.02833814]
[1758322348212,4.68504895,238.89,238.86,0.02833814]
[1758322348410,4.68504895,238.9,238.86,0.02833814]
[1758322348706,4.68504895,238.91,238.87,6.8]
[1758322348908,4.36,238.9,238.87,6.8]
[1758322349913,4.68504895,238.91,238.87,6.8]
[1758322350114,4.36,238.9,238.87,6.8]
[1758322350515,4.68504895,238.91,238.87,6.8]
[1758322351115,4.36,238.9,238.87,6.8]
[1758322351914,4.68504895,238.91,238.87,6.8]
[1758322352720,4.36,238.9,238.87,6.8]
[1758322355215,9.04504895,238.9,238.87,6.8]
[1758322356824,9.04504895,238.89,238.86,0.02833814]
[1758322357014,4.36,238.87,238.86,0.02833814]
[1758322362818,4.68504895,238.89,238.86,0.02833814]
[1758322363020,9.04504895,238.89,238.87,6.8]
[1758322363223,4.36,238.88,238.86,0.02833814]
[1758322364426,4.68504895,238.89,238.86,0.02833814]
[1758322364622,4.36,238.88,238.86,0.02833814]
[1758322365221,4.68504895,238.89,238.86,0.02833814]
[1758322366118,4.36,238.88,238.86,0.02833814]
[1758322366718,4.68504895,238.89,238.86,0.02833814]
[1758322367117,4.36,238.88,238.86,0.02833814]
[1758322367518,4.68504895,238.89,238.86,0.02833814]
[1758322368524,4.36,238.88,238.86,0.02833814]
[1758322368729,4.68504895,238.89,238.86,0.02833814]
[1758322368925,4.36,238.88,238.86,0.02833814]
[1758322370130,4.68504895,238.89,238.86,0.02833814]
[1758322370333,4.36,238.88,238.86,0.02833814]
[1758322370530,4.68504895,238.89,238.86,0.02833814]
[1758322370730,4.36,238.88,238.86,0.02833814]
[1758322370932,4.68504895,238.89,238.86,0.02833814]
[1758322371233,9.04504895,238.88,238.86,0.02833814]
[1758322371932,4.68504895,238.87,238.86,0.02833814]
[1758322372126,9.04504895,238.87,238.86,0.02833814]
[1758322382941,4.36,238.87,238.86,0.02833814]
[1758322391254,9.04504895,238.87,238.86,0.02833814]
[1758322410257,4.36,238.87,238.86,0.02833814]
[1758322423263,104.9454,238.88,238.86,0.02833814]
[1758322423470,4.36,238.87,238.86,0.02833814]
[1758322426772,105.54,238.87,238.86,0.02833814]
[1758322427673,4.36,238.87,238.86,0.02833814]
[1758322427973,105.54,238.87,238.86,0.02833814]
[1758322428272,4.36,238.87,238.86,0.02833814]
[1758322428471,105.54,238.87,238.86,0.02833814]
[1758322428875,4.36,238.87,238.86,0.02833814]
[1758322429276,105.54,238.87,238.86,0.02833814]
[1758322430782,4.36,238.87,238.86,0.02833814]
[1758322430983,105.54,238.87,238.86,0.02833814]
[1758322431184,4.36,238.87,238.86,0.02833814]
[1758322431577,105.54,238.87,238.86,0.02833814]
[1758322431782,4.36,238.87,238.86,0.02833814]
[1758322432183,88.62,238.87,238.86,0.02833814]
[1758322432383,4.36,238.87,238.86,0.02833814]
[1758322437287,92.18,238.87,238.86,0.02833814]
[1758322437484,4.36,238.87,238.86,0.02833814]
[1758322445790,105.54,238.87,238.86,0.02833814]
[1758322447292,4.36,238.87,238.86,0.02833814]
[1758322447494,105.52,238.87,238.86,0.02833814]
[1758322447797,4.36,238.87,238.86,0.02833814]
[1758322448594,105.52,238.87,238.86,0.02833814]
[1758322449096,4.36,238.87,238.86,0.02833814]
[1758322449995,105.52,238.87,238.86,0.02833814]
[1758322450394,4.36,238.87,238.86,0.02833814]
[1758322450597,105.52,238.87,238.86,0.02833814]
[1758322451798,4.36,238.87,238.86,0.02833814]
[1758322451990,105.52,238.87,238.86,0.02833814]
[1758322452585,4.36,238.87,238.86,0.02833814]
[1758322453094,105.52,238.87,238.86,0.02833814]
[1758322453295,4.36,238.87,238.86,0.02833814]
[1758322453895,105.52,238.87,238.86,0.02833814]
[1758322454297,4.36,238.87,238.86,0.02833814]
[1758322454809,109.2855,238.88,238.86,6.90833814]
[1758322455297,104.9255,238.88,238.87,6.88]
[1758322455795,3.7655,238.88,238.87,6.88]
[1758322455992,108.18723488,238.9,238.87,6.88]
[1758322456187,4.70917147,238.88,238.87,6.88]
[1758322459301,4.70917147,238.89,238.87,6.88]
[1758322459602,4.70917147,238.89,238.86,0.02833814]
[1758322459798,9.06917147,238.87,238.86,0.02833814]
[1758322460001,4.36,238.87,238.86,0.02833814]
[1758322460702,105.52,238.87,238.86,0.02833814]
[1758322461003,4.36,238.87,238.86,0.02833814]
[1758322461499,105.52,238.87,238.86,0.02833814]
[1758322462504,109.33914666,238.87,238.76,10.6472]
[1758322462701,4.36,238.82,238.76,6.88]
[1758322463701,0.02660113,238.81,238.76,6.88]
[1758322463899,0.02660113,238.81,238.75,1.15191178]
[1758322464100,4.36,238.8,238.74,3.7674]
[1758322464301,4.38660113,238.81,238.75,6.88]
[1758322477521,4.38660113,238.81,238.75,10.6473]
[1758322479016,4.38660113,238.81,238.75,3.7673]
[1758322479218,4.38660113,238.81,238.76,6.92]
[1758322480021,0.02660113,238.81,238.75,3.7673]
[1758322480222,4.39660113,238.81,238.75,10.6873]
[1758322483718,0.02660113,238.81,238.75,3.7673]
[1758322484414,0.02660113,238.81,238.76,6.92]
[1758322484618,0.02660113,238.81,238.75,3.7673]
[1758322485215,0.02660113,238.81,238.76,6.92]
[1758322485718,0.02660113,238.81,238.75,3.7673]
[1758322485923,4.39660113,238.81,238.75,3.7673]
[1758322486426,4.39660113,238.81,238.76,6.92]
[1758322486622,4.39660113,238.81,238.75,3.7673]
[1758322486823,4.39660113,238.81,238.76,6.92]
[1758322487018,4.39660113,238.81,238.75,3.7673]
[1758322487426,4.39660113,238.81,238.76,6.92]
[1758322487624,4.39660113,238.81,238.75,3.7673]
[1758322488523,4.39660113,238.81,238.76,6.92]
[1758322489128,4.39660113,238.81,238.75,3.7673]
[1758322489633,4.39660113,238.81,238.76,6.92]
[1758322489826,4.39660113,238.81,238.75,3.7673]
[1758322490731,4.39660113,238.81,238.76,6.92]
[1758322490929,4.39660113,238.81,238.75,3.7673]
[1758322491432,4.39660113,238.81,238.76,6.92]
[1758322491634,4.39660113,238.81,238.75,3.7673]
[1758322491828,4.39660113,238.81,238.76,6.92]
[1758322492031,4.39660113,238.81,238.75,3.7673]
[1758322492334,4.39660113,238.81,238.76,6.92]
[1758322492551,4.39660113,238.81,238.75,3.7673]
[1758322493033,4.39660113,238.81,238.76,6.92]
[1758322493430,4.39660113,238.81,238.75,3.7673]
[1758322493628,4.39660113,238.81,238.76,6.92]
[1758322493832,4.39660113,238.81,238.75,3.7673]
[1758322494227,0.02660113,238.81,238.75,3.7673]
[1758322494632,4.39660113,238.81,238.75,3.7673]
[1758322494834,4.39660113,238.81,238.76,6.92]
[1758322495532,0.02660113,238.81,238.75,3.7673]
[1758322495932,0.02660113,238.81,238.76,6.92]
[1758322496136,0.02660113,238.81,238.75,3.7673]
[1758322496635,0.02660113,238.81,238.76,6.92]
[1758322497237,0.02660113,238.81,238.75,3.7673]
[1758322498441,0.02660113,238.81,238.76,6.92]
[1758322498630,0.02660113,238.81,238.75,3.7673]
[1758322499237,4.39660113,238.81,238.75,3.7673]
[1758322499639,4.39660113,238.81,238.76,7.02]
[1758322500036,4.39660113,238.81,238.75,3.7673]
[1758322500436,4.39660113,238.81,238.76,7.02]
[1758322500636,4.39660113,238.81,238.75,3.7673]
[1758322500939,4.39660113,238.81,238.76,7.02]
[1758322501334,4.39660113,238.81,238.75,10.7873]
[1758322501536,4.39660113,238.81,238.75,7.02]
[1758322502239,4.37,238.8,238.75,7.02]
[1758322502534,4.70545208,238.8,238.75,7.02]
[1758322502741,4.37,238.79,238.75,7.02]
[1758322503138,4.37,238.78,238.75,7.02]
[1758322503336,4.70545208,238.8,238.74,1.15191178]
[1758322503543,4.70545208,238.8,238.75,7.02]
[1758322503738,4.70545208,238.8,238.74,1.15191178]
[1758322504145,4.70545208,238.79,238.75,7.02]
[1758322504536,9.07545208,238.79,238.75,7.02]
[1758322505149,9.07545208,238.79,238.74,4.91931178]
[1758322505341,9.07545208,238.79,238.75,7.02]
[1758322505640,9.07545208,238.79,238.74,4.91931178]
[1758322505844,9.07545208,238.79,238.75,7.02]
[1758322506139,9.07545208,238.79,238.74,4.91931178]
[1758322507037,9.07545208,238.79,238.75,7.02]
[1758322507546,9.07545208,238.79,238.74,4.91931178]
[1758322508042,9.07545208,238.79,238.75,7.02]
[1758322508246,9.07545208,238.79,238.74,4.91931178]
[1758322509345,9.07545208,238.79,238.75,7.02]
[1758322509541,9.07545208,238.79,238.74,4.91931178]
[1758322510546,4.37,238.79,238.74,4.91931178]
[1758322510941,9.07545208,238.79,238.74,4.91931178]
[1758322511244,4.37,238.79,238.74,4.91931178]
[1758322511450,4.37,238.79,238.75,7.02]
[1758322511750,9.07545208,238.79,238.75,7.02]
[1758322512049,9.07545208,238.79,238.74,4.91931178]
[1758322512752,9.07545208,238.79,238.75,7.02]
[1758322512949,9.07545208,238.79,238.74,4.91931178]
[1758322513551,9.07545208,238.79,238.75,7.02]
[1758322513751,9.07545208,238.79,238.74,4.91931178]
[1758322513945,4.70545208,238.79,238.77,8.17191178]
[1758322514154,0.03116174,238.8,238.77,1.15191178]
[1758322514349,0.03116174,238.8,238.78,7.02]
[1758322514846,0.03116174,238.8,238.77,4.91891178]
[1758322515049,0.03116174,238.8,238.78,7.02]
[1758322515246,0.03116174,238.8,238.77,4.91891178]
[1758322515752,0.03116174,238.8,238.78,7.02]
[1758322515958,0.03116174,238.8,238.77,4.91891178]
[1758322516150,0.03116174,238.8,238.78,7.02]
[1758322516350,0.03116174,238.8,238.77,4.91891178]
[1758322516746,0.03116174,238.8,238.78,7.02]
[1758322516952,0.03116174,238.8,238.77,4.91891178]
[1758322517850,0.03116174,238.8,238.77,3.767]
[1758322518652,0.03116174,238.8,238.78,7.02]
[1758322518853,0.03116174,238.8,238.77,3.767]
[1758322519052,0.03116174,238.8,238.78,7.02]
[1758322519447,0.03116174,238.8,238.77,3.767]
[1758322519653,0.03116174,238.8,238.78,7.02]
[1758322520156,4.40116174,238.8,238.78,7.02]
[1758322521856,0.03116174,238.8,238.77,3.767]
[1758322522057,4.37,238.79,238.77,10.787]
[1758322522459,0.03116174,238.8,238.78,7.02]
[1758322524361,0.03116174,238.8,238.77,3.767]
[1758322524758,0.03116174,238.8,238.78,7.02]
[1758322525368,4.40116174,238.8,238.78,7.02]
[1758322528268,0.03116174,238.8,238.73,3.7677]
[1758322528560,0.03116174,238.8,238.74,7.02]
[1758322528561,4.70545208,238.79,238.74,7.02]
[1758322528757,4.70545208,238.79,238.73,3.7677]
[1758322528957,4.70545208,238.79,238.71,3.768]
[1758322529159,4.70545208,238.79,238.72,6.96]
[1758322538672,8.47225208,238.79,238.72,6.96]
[1758322544177,4.70545208,238.79,238.72,10.7277]
[1758322544382,4.70545208,238.79,238.73,6.96]
[1758322544577,4.73661382,238.8,238.73,6.96]
[1758322545980,4.73661382,238.8,238.74,6.96]
[1758322546682,8.50321382,238.8,238.74,6.96]
[1758322546878,4.37,238.78,238.71,5.56847175]
[1758322547080,4.37,238.78,238.72,6.96]
[1758322551686,12.84245208,238.78,238.72,6.96]
[1758322556590,12.84245208,238.78,238.69,3.7683]
[1758322556591,12.84265208,238.77,238.7,6.96]
[1758322560891,4.70545208,238.76,238.7,6.96]
[1758322562288,4.37,238.75,238.7,6.96]
[1758322562494,4.70545208,238.75,238.7,6.96]
[1758322562796,4.37,238.74,238.7,6.96]
[1758322562994,4.37,238.74,238.68,6.75]
[1758322564893,9.07545208,238.73,238.65,10.5189]
[1758322565195,9.07545208,238.73,238.66,6.75]
[1758322565499,0.02684084,238.71,238.66,6.75]
[1758322570197,0.02684084,238.71,238.65,3.7689]
[1758322570696,0.02684084,238.71,238.66,6.75]
[1758322570899,0.02684084,238.71,238.65,3.7689]
[1758322571201,0.02684084,238.71,238.66,6.75]
[1758322571397,0.02684084,238.71,238.65,3.7689]
[1758322572199,0.02684084,238.71,238.66,6.75]
[1758322572794,0.02684084,238.71,238.65,3.7689]
[1758322573603,0.02684084,238.71,238.66,6.75]
[1758322573803,0.02684084,238.71,238.65,3.7689]
[1758322574200,0.02684084,238.71,238.66,6.75]
[1758322575897,0.02684084,238.71,238.7,6.75]
[1758322629448,0.02684084,238.71,238.67,3.7686]
[1758322629449,4.39684084,238.71,238.67,3.7686]
[1758322629752,4.39684084,238.71,238.68,6.6]
[1758322630249,0.02684084,238.71,238.68,6.6]
[1758322630449,0.02684084,238.71,238.67,3.7686]
[1758322630651,4.39684084,238.71,238.67,3.7686]
[1758322631352,4.39684084,238.71,238.68,6.6]
[1758322631554,4.39684084,238.71,238.67,3.7686]
[1758322631754,9.10229292,238.71,238.67,3.7686]
[1758322632151,9.10229292,238.71,238.68,6.6]
[1758322632455,4.39684084,238.71,238.67,3.7686]
[1758322632656,4.39684084,238.71,238.68,6.6]
[1758322633556,4.39684084,238.71,238.67,3.7686]
[1758322633756,4.39684084,238.71,238.68,6.6]
[1758322633949,4.39684084,238.71,238.67,3.7686]
[1758322634156,4.39684084,238.71,238.68,6.6]
[1758322634357,4.39684084,238.71,238.67,3.7686]
[1758322634658,4.39684084,238.71,238.68,6.6]
[1758322634852,0.02684084,238.71,238.66,6.6]
[1758322635857,0.02684084,238.71,238.66,3.7686]
[1758322636155,0.02684084,238.71,238.67,6.6]
[1758322636854,0.02684084,238.71,238.66,3.7686]
[1758322637756,0.02684084,238.71,238.67,6.6]
[1758322638161,0.02684084,238.71,238.66,3.7686]
[1758322638758,0.02684084,238.71,238.67,6.6]
[1758322639152,0.02684084,238.71,238.66,3.7686]
[1758322639359,0.02684084,238.71,238.67,6.6]
[1758322639557,0.02684084,238.71,238.66,3.7686]
[1758322639758,0.02684084,238.71,238.67,6.6]
[1758322640361,0.02684084,238.71,238.66,3.7686]
[1758322640553,0.02684084,238.71,238.67,6.6]
[1758322640758,0.02684084,238.71,238.66,3.7686]
[1758322642052,0.02684084,238.71,238.67,6.6]
[1758322642963,0.02684084,238.71,238.66,3.7686]
[1758322643563,0.02684084,238.71,238.68,6.6]
[1758322643765,0.02684084,238.71,238.67,3.7685]
[1758322643960,0.02684084,238.71,238.68,6.6]
[1758322644165,0.02684084,238.71,238.67,3.7685]
[1758322644465,0.02684084,238.71,238.68,6.6]
[1758322644763,0.02684084,238.71,238.67,3.7685]
[1758322645164,0.02684084,238.71,238.68,6.6]
[1758322645965,0.02684084,238.71,238.67,3.7685]
[1758322646166,0.02684084,238.71,238.68,6.6]
[1758322646669,0.02684084,238.71,238.67,3.7685]
[1758322647058,0.02684084,238.71,238.68,6.6]
[1758322647257,0.02684084,238.71,238.67,3.7685]
[1758322648064,0.02684084,238.71,238.68,6.6]
[1758322648562,0.02684084,238.71,238.68,7.13]
[1758322648762,0.02684084,238.71,238.67,3.7685]
[1758322649569,0.02684084,238.71,238.68,7.13]
[1758322649769,0.02684084,238.71,238.67,3.7685]
[1758322649966,0.02684084,238.71,238.68,7.13]
[1758322650365,0.02684084,238.71,238.67,3.7685]
[1758322650674,0.02684084,238.71,238.68,7.13]
[1758322650865,0.02684084,238.71,238.67,3.7685]
[1758322652168,0.02684084,238.71,238.68,7.13]
[1758322652666,0.02684084,238.71,238.67,3.7685]
[1758322653072,0.02684084,238.71,238.68,7.13]
[1758322653277,0.02684084,238.71,238.67,3.7685]
[1758322653666,0.02684084,238.71,238.68,7.13]
[1758322653971,0.02684084,238.71,238.67,3.7685]
[1758322654572,0.02684084,238.71,238.68,7.13]
[1758322654775,0.02684084,238.71,238.67,3.7685]
[1758322655163,0.02684084,238.71,238.68,7.13]
[1758322655672,0.02684084,238.71,238.68,10.8983]
[1758322655876,0.02684084,238.71,238.69,7.13]
[1758322656078,0.02684084,238.71,238.68,3.7683]
[1758322656368,0.02684084,238.71,238.69,7.13]
[1758322656576,0.02684084,238.71,238.68,3.7683]
[1758322656770,0.02684084,238.71,238.69,7.13]
[1758322657269,0.02684084,238.71,238.68,3.7683]
[1758322657875,0.02684084,238.71,238.69,7.13]
[1758322658371,0.02684084,238.71,238.68,3.7683]
[1758322658576,0.02684084,238.71,238.69,7.13]
[1758322658870,0.02684084,238.71,238.68,3.7683]
[1758322659271,0.02684084,238.71,238.69,7.13]
[1758322659574,0.02684084,238.71,238.68,3.7683]
[1758322660069,0.02684084,238.71,238.69,7.13]
[1758322660769,0.02684084,238.71,238.68,3.7683]
[1758322660972,0.02684084,238.71,238.69,7.13]
[1758322661171,0.02684084,238.71,238.68,3.7683]
[1758322661470,0.02684084,238.71,238.69,7.13]
[1758322662176,0.02684084,238.71,238.69,10.8982]
[1758322662374,4.70545208,238.75,238.69,7.13]
[1758322662669,4.70545208,238.76,238.69,7.13]
[1758322663267,4.70545208,238.76,238.73,3.7677]
[1758322663674,4.70545208,238.76,238.74,7.13]
[1758322665276,4.70545208,238.76,238.73,3.7677]
[1758322665671,4.70545208,238.76,238.74,7.13]
[1758322666066,4.70545208,238.76,238.73,3.7677]
[1758322666574,4.70545208,238.76,238.74,7.13]
[1758322666773,4.70545208,238.76,238.73,3.7677]
[1758322666974,4.70545208,238.76,238.74,7.13]
[1758322667178,4.70545208,238.76,238.73,3.7677]
[1758322667478,4.70545208,238.76,238.73,3.79493215]
[1758322667976,4.70545208,238.76,238.74,7.13]
[1758322668376,4.70545208,238.76,238.73,3.79493215]
[1758322668669,4.70545208,238.76,238.74,7.13]
[1758322668880,4.70545208,238.76,238.73,3.79493215]
[1758322669074,4.70545208,238.76,238.74,7.13]
[1758322669479,4.70545208,238.76,238.73,3.79493215]
[1758322670780,4.70545208,238.76,238.74,7.13]
[1758322671170,4.70545208,238.76,238.73,3.79493215]
[1758322671570,4.70545208,238.76,238.74,7.13]
[1758322672383,4.70545208,238.76,238.73,3.79493215]
[1758322672582,4.70545208,238.76,238.74,7.13]
[1758322672781,4.70545208,238.76,238.73,3.79493215]
[1758322673282,4.70545208,238.76,238.74,7.13]
[1758322673674,4.70545208,238.76,238.74,10.8974]
[1758322673990,4.70545208,238.76,238.75,7.13]
[1758322676480,4.70545208,238.77,238.75,7.13]
[1758322683190,4.70545208,238.77,238.75,7.11]
[1758322684384,4.38,238.76,238.73,7.13723215]
[1758322685184,4.70545208,238.77,238.73,7.13723215]
[1758322685392,4.38,238.76,238.73,7.13723215]
[1758322689299,8.47265208,238.77,238.73,7.13723215]
[1758322689498,9.08545208,238.75,238.73,7.13723215]
[1758322698506,4.70545208,238.75,238.73,0.02723215]
[1758322698713,4.38,238.74,238.73,0.02723215]
[1758322699410,105.5,238.74,238.73,0.02723215]
[1758322699614,4.38,238.74,238.73,0.02723215]
[1758322699809,8.1475,238.74,238.73,0.02723215]
[1758322700113,109.2675,238.74,238.73,0.02723215]
[1758322700612,8.1475,238.74,238.73,0.02723215]
[1758322700812,4.38,238.73,238.69,7.11]
[1758322701014,4.38,238.71,238.69,7.11]
[1758322701712,9.08453399,238.71,238.69,7.11]
[1758322702918,4.70453399,238.71,238.65,7.11]
[1758322703811,0.03210207,238.7,238.65,7.11]
[1758322705409,0.03210207,238.7,238.64,1.15344562]
[1758322705721,0.03210207,238.7,238.61,70.93057516]
[1758322705722,4.41210207,238.7,238.62,7.11]
[1758322707819,9.11663606,238.7,238.62,7.11]
[1758322708414,4.41210207,238.7,238.62,7.11]
[1758322714629,8.18040207,238.7,238.62,7.11]
[1758322714830,8.18040207,238.7,238.62,8.26344562]
[1758322721330,8.18040207,238.7,238.62,12.03274562]
[1758322721530,8.18040207,238.7,238.63,7.15]
[1758322725130,3.7684,238.69,238.63,7.15]
[1758322741447,3.7684,238.69,238.63,10.9191]
[1758322743447,8.46307362,238.69,238.63,10.9191]
[1758322744147,8.46307362,238.69,238.64,6.61]
[1758322744344,8.46307362,238.69,238.63,3.7691]
[1758322744942,12.86307362,238.69,238.63,3.7691]
[1758322745446,12.86307362,238.69,238.64,6.61]
[1758322745947,12.86307362,238.69,238.63,3.7691]
[1758322746146,12.86307362,238.69,238.64,6.61]
[1758322746343,12.86307362,238.69,238.63,3.7691]
[1758322746344,4.4,238.68,238.63,3.7691]
[1758322746648,4.4,238.68,238.64,6.61]
[1758322747039,4.4,238.68,238.63,3.7691]
[1758322748245,4.4,238.68,238.64,6.61]
[1758322748646,4.4,238.68,238.63,3.7691]
[1758322749545,4.4,238.68,238.64,6.61]
[1758322749849,4.4,238.68,238.63,3.7691]
[1758322750348,9.09467362,238.68,238.63,3.7691]
[1758322750750,9.09467362,238.68,238.64,6.61]
[1758322750947,9.09467362,238.68,238.63,3.7691]
[1758322751340,9.09467362,238.68,238.64,6.61]
[1758322751745,9.09467362,238.68,238.63,3.7691]
[1758322751949,9.09467362,238.68,238.64,6.61]
[1758322752350,9.09467362,238.68,238.63,3.7691]
[1758322752844,9.09467362,238.68,238.64,6.61]
[1758322753346,9.09467362,238.68,238.63,3.7691]
[1758322753947,9.09467362,238.68,238.64,6.61]
[1758322754451,9.09467362,238.68,238.63,3.7691]
[1758322754648,9.09467362,238.68,238.64,6.61]
[1758322755344,9.09467362,238.68,238.63,3.7691]
[1758322758848,9.09467362,238.68,238.64,6.61]
[1758322759251,9.09467362,238.68,238.63,3.7691]
[1758322759447,4.4,238.67,238.63,3.7691]
[1758322761056,4.4,238.67,238.64,6.61]
[1758322761356,4.4,238.67,238.63,3.7691]
[1758322761558,4.4,238.67,238.64,6.61]
[1758322761757,4.4,238.67,238.63,3.7691]
[1758322762049,4.4,238.67,238.64,6.61]
[1758322765858,4.4,238.67,238.63,3.7691]
[1758322766058,4.4,238.67,238.64,6.61]
[1758322766948,4.4,238.67,238.63,3.7691]
[1758322767357,4.4,238.67,238.64,6.61]
[1758322767559,4.4,238.67,238.63,3.7691]
[1758322768157,4.4,238.67,238.64,6.61]
[1758322768458,4.4,238.67,238.64,7.14]
[1758322768760,4.4,238.67,238.63,3.7691]
[1758322769955,4.4,238.67,238.64,7.14]
[1758322770360,4.4,238.67,238.63,3.7691]
[1758322770562,4.4,238.67,238.64,7.14]
[1758322774560,4.4,238.67,238.63,3.7691]
[1758322776361,4.4,238.67,238.64,7.14]
[1758322776562,4.4,238.67,238.63,3.7691]
[1758322776776,4.4,238.67,238.64,7.14]
[1758322776964,4.4,238.67,238.63,3.7691]
[1758322777359,4.4,238.67,238.64,3.769]
[1758322777556,4.69467362,238.68,238.64,3.769]
[1758322778464,4.69467362,238.69,238.65,7.14]
[1758322778963,4.69467362,238.69,238.64,3.769]
[1758322779162,4.69467362,238.69,238.65,7.14]